bitfinex-derivatives/quotes_BNBF0:USTF0_20250101
["timestamp","ask_amount","ask_price","bid_price","bid_amount"]
[1735697611774,0.2597842,709.14,707.96,1.05583573]
[1735697611973,0.2597842,709.13,708.11,1.05583573]
[1735697612178,1.47332769,709.16,708.11,1.05583573]
[1735697612575,0.25977736,709.15,708.11,1.05583573]
[1735697612981,1.47332769,709.16,708.11,1.05583573]
[1735697613182,1.47332769,709.16,707.34,2.15566463]
[1735697613183,0.25977846,709.15,708.1,1.05583573]
[1735697614182,0.25977846,709.15,708.18,1.05583573]
[1735697614986,0.25978367,709.14,708.18,1.05583573]
[1735697615182,0.25978367,709.13,708.14,1.05583573]
[1735697615489,0.25978367,709.12,708.14,1.05583573]
[1735697615690,0.25978367,709.11,708.14,1.05583573]
[1735697615892,0.25978367,709.1,708.14,1.05583573]
[1735697616088,0.25978367,709.09,708.15,1.05583573]
[1735697616285,0.25978367,709.08,708.15,1.05583573]
[1735697616490,0.25978367,709.07,708.15,1.05583573]
[1735697616686,0.25978367,709.06,708.15,1.05583573]
[1735697616887,0.25978367,709.05,708.15,1.05583573]
[1735697617091,1.47332769,709.16,708.15,1.05583573]
[1735697617289,0.25978248,709.15,708.15,1.05583573]
[1735697617691,0.25977232,709.14,708.15,1.05583573]
[1735697617992,0.25977232,709.13,708.15,1.05583573]
[1735697618289,0.25977232,709.12,708.15,1.05583573]
[1735697618489,0.25977232,709.11,708.15,1.05583573]
[1735697618693,0.25977232,709.1,708.12,1.05583573]
[1735697618992,0.25977232,709.09,708.12,1.05583573]
[1735697619193,0.25977232,709.08,708.12,1.05583573]
[1735697619385,1.47332769,709.16,708.12,1.05583573]
[1735697619586,0.25978634,709.15,708.12,1.05583573]
[1735697620185,1.47332769,709.16,708.12,1.05583573]
[1735697620389,0.25977463,709.15,708.12,1.05583573]
[1735697620592,0.25977463,709.15,708.15,1.05583573]
[1735697620791,1.47332769,709.16,708.15,1.05583573]
[1735697621693,0.28196813,709.3,708.16,1.05583573]
[1735697621884,1.47327051,709.26,708.16,1.05583573]
[1735697622090,0.25973679,709.25,708.16,1.05583573]
[1735697622589,0.25973679,709.25,708.31,1.05583573]
[1735697623394,0.28196813,709.3,708.31,1.05583573]
[1735697623590,0.28196813,709.3,708.34,1.05583573]
[1735697624184,1.47278729,709.53,708.34,1.05583573]
[1735697624390,0.25962512,709.52,708.34,1.05583573]
[1735697624592,0.25962512,709.52,708.5,1.05583573]
[1735697625490,0.2596285,709.51,708.41,1.05583573]
[1735697625793,0.2596285,709.5,708.41,1.05583573]
[1735697625992,1.47278729,709.53,708.41,1.05583573]
[1735697626188,0.25962179,709.52,708.41,1.05583573]
[1735697626690,0.25962179,709.52,708.37,1.05583573]
[1735697627591,1.47278729,709.53,708.33,1.05583573]
[1735697628796,1.47278729,709.53,708.3,1.05583573]
[1735697629092,1.47278729,709.53,708.3,1.33820195]
[1735697629692,1.47278729,709.53,708.3,0.28236622]
[1735697639499,3.19645687,710.67,708.3,0.28236622]
[1735697639800,1.47276652,709.61,708.3,0.28236622]
[1735697639999,0.25960889,709.6,708.3,0.28236622]
[1735697640193,0.25960889,709.59,708.3,0.28236622]
[1735697640392,0.25960889,709.58,708.3,0.28236622]
[1735697640592,0.25960889,709.57,708.3,0.28236622]
[1735697640796,0.25960889,709.56,708.3,0.28236622]
[1735697640998,0.25961932,709.55,708.3,0.28236622]
[1735697641296,0.25961932,709.54,708.3,0.28236622]
[1735697641493,0.25961932,709.53,708.3,0.28236622]
[1735697641698,0.25961932,709.52,708.3,0.28236622]
[1735697641996,0.25961932,709.51,708.3,0.28236622]
[1735697642193,0.25961932,709.5,708.3,0.28236622]
[1735697642394,0.25961932,709.49,708.3,0.28236622]
[1735697642599,0.25961932,709.48,708.3,0.28236622]
[1735697642791,0.25961932,709.47,708.3,0.28236622]
[1735697642997,1.4726938,709.61,708.3,0.28236622]
[1735697642998,0.25961932,709.46,708.3,0.28236622]
[1735697643194,0.25961967,709.45,708.3,0.28236622]
[1735697643396,0.25961967,709.44,708.3,0.28236622]
[1735697643699,1.4726938,709.61,708.3,0.28236622]
[1735697643700,0.25961967,709.43,708.3,0.28236622]
[1735697643899,1.4726938,709.61,708.3,0.28236622]
[1735697644098,0.25961923,709.6,708.3,0.28236622]
[1735697647499,1.4726938,709.61,708.3,0.28236622]
[1735697647696,0.2596274,709.6,708.3,0.28236622]
[1735697648703,0.25964225,709.59,708.3,0.28236622]
[1735697649001,0.25964225,709.58,708.3,0.28236622]
[1735697649199,0.25964225,709.57,708.3,0.28236622]
[1735697649403,0.25964225,709.56,708.3,0.28236622]
[1735697649602,0.25964225,709.55,708.3,0.28236622]
[1735697649799,0.25964225,709.54,708.3,0.28236622]
[1735697650003,0.25964225,709.53,708.3,0.28236622]
[1735697650204,0.25964225,709.52,708.3,0.28236622]
[1735697650405,0.25964225,709.51,708.3,0.28236622]
[1735697650599,0.25964225,709.5,708.3,0.28236622]
[1735697650803,0.25964225,709.49,708.3,0.28236622]
[1735697651002,0.25964225,709.48,708.31,1.05583573]
[1735697651202,0.25964225,709.47,708.31,1.05583573]
[1735697651404,0.25964225,709.46,708.31,1.05583573]
[1735697651600,0.25964225,709.45,708.31,1.05583573]
[1735697651801,0.25964225,709.44,708.31,1.05583573]
[1735697652001,0.25964225,709.43,708.31,1.05583573]
[1735697652205,0.25964225,709.42,708.34,1.05583573]
[1735697652408,0.25964225,709.41,708.34,1.05583573]
[1735697652606,0.25964225,709.4,708.34,1.05583573]
[1735697652906,0.25964225,709.39,708.34,1.05583573]
[1735697653105,0.25964225,709.38,708.38,1.05583573]
[1735697653307,1.4727769,709.52,708.38,1.05583573]
[1735697653604,0.25963297,709.51,708.38,1.05583573]
[1735697654007,0.25963203,709.5,708.38,1.05583573]
[1735697654204,0.25963203,709.49,708.38,1.05583573]
[1735697654405,0.25963203,709.48,708.43,1.05583573]
[1735697654601,0.25963203,709.47,708.43,1.05583573]
[1735697654801,0.25963203,709.46,708.43,1.05583573]
[1735697655001,0.25963203,709.45,708.43,1.05583573]
[1735697655205,0.25963203,709.45,708.3,0.28236622]
[1735697655206,0.25963203,709.44,708.52,1.05583573]
[1735697655403,0.25963203,709.43,708.52,1.05583573]
[1735697655603,0.25963203,709.42,708.52,1.05583573]
[1735697655805,0.25963203,709.41,708.52,1.05583573]
[1735697656007,0.25963203,709.4,708.52,1.05583573]
[1735697656309,0.25963203,709.39,708.52,1.05583573]
[1735697656505,0.25963203,709.38,708.63,1.05583573]
[1735697656702,0.25963898,709.37,708.63,1.05583573]
[1735697657008,0.25963898,709.36,708.63,1.05583573]
[1735697657209,0.25963898,709.35,708.63,1.05583573]
[1735697657407,1.4727769,709.52,708.63,1.05583573]
[1735697657408,0.25963898,709.34,708.63,1.05583573]
[1735697657605,0.25963898,709.33,708.66,1.05583573]
[1735697657908,0.25963898,709.32,708.66,1.05583573]
[1735697658104,1.4727769,709.52,708.66,1.05583573]
[1735697658312,0.25961496,709.51,708.71,1.05583573]
[1735697658504,1.4727769,709.52,708.71,1.05583573]
[1735697658705,1.4727769,709.52,708.31,0.78638842]
[1735697659806,1.4727769,709.52,708.65,1.05575805]
[1735697662110,1.4727769,709.52,708.31,0.78638842]
[1735697662111,1.4727769,709.52,708.63,1.05575805]
[1735697663007,1.4727769,709.52,708.61,1.05575805]
[1735697663410,1.05834082,710.18,708.61,1.05575805]
[1735697663607,1.47244455,709.67,708.61,1.05575805]
[1735697663814,0.28162667,710.16,708.61,1.05575805]
[1735697664112,1.47233553,709.67,708.64,1.05575805]
[1735697664315,0.28162667,710.16,708.64,1.05575805]
[1735697664612,0.25957781,710.15,708.64,1.05575805]
[1735697664814,0.28163857,710.13,708.68,1.05575805]
[1735697665013,0.25957781,710.12,708.68,1.05575805]
[1735697665307,0.28165047,710.1,708.68,1.05575805]
[1735697665512,0.25957781,710.09,708.68,1.05575805]
[1735697665711,0.28166237,710.07,708.68,1.05575805]
[1735697665911,0.25957781,710.06,708.68,1.05575805]
[1735697666208,0.2816703,710.05,708.68,1.05575805]
[1735697666407,0.25957781,710.04,708.68,1.05575805]
[1735697666610,0.28167823,710.03,708.68,1.05575805]
[1735697666807,0.25957781,710.02,708.68,1.05575805]
[1735697667014,0.28168617,710.01,708.68,1.05575805]
[1735697667211,0.28168617,710.01,708.66,1.05575805]
[1735697667412,0.25957474,710.0,708.66,1.05575805]
[1735697667613,0.2816941,709.99,708.66,1.05575805]
[1735697667913,0.25957474,709.98,708.63,1.05575805]
[1735697668112,0.54128097,709.97,708.63,1.05575805]
[1735697668313,0.54128494,709.96,708.63,1.05575805]
[1735697668519,0.5412889,709.95,708.63,1.05575805]
[1735697668814,0.54129287,709.94,708.63,1.05575805]
[1735697669007,0.54129684,709.93,708.59,1.05575805]
[1735697669208,0.54130081,709.92,708.59,1.05575805]
[1735697669412,0.54130478,709.91,708.59,1.05575805]
[1735697669614,0.54130875,709.9,708.59,1.05575805]
[1735697669814,0.54131271,709.89,708.59,1.05575805]
[1735697670108,0.54131668,709.88,708.59,1.05575805]
[1735697670314,0.54132065,709.87,708.59,1.05575805]
[1735697670614,0.25957893,709.86,708.59,1.05575805]
[1735697670914,0.25957893,709.86,708.6,1.05575805]
[1735697672213,0.25957893,709.86,708.57,1.05575805]
[1735697672815,0.2595801,709.85,708.57,1.05575805]
[1735697673016,0.2595801,709.84,708.57,1.05575805]
[1735697673316,0.2595801,709.83,708.6,1.05575805]
[1735697673517,0.2595801,709.82,708.6,1.05575805]
[1735697673819,0.2595801,709.81,708.6,1.05575805]
[1735697674013,0.2595801,709.8,708.61,1.05575805]
[1735697674217,0.2595801,709.79,708.61,1.05575805]
[1735697674417,0.2595801,709.78,708.61,1.05575805]
[1735697674716,0.2595801,709.77,708.61,1.05575805]
[1735697674911,0.2595801,709.76,708.61,1.05575805]
[1735697675112,0.2595801,709.75,708.61,1.05575805]
[1735697675313,0.2595801,709.74,708.61,1.0430511]
[1735697675513,0.2595801,709.73,708.63,1.0430511]
[1735697675711,0.2595801,709.72,708.63,1.0430511]
[1735697676115,1.47220058,709.73,708.63,1.0430511]
[1735697676316,0.2595618,709.72,708.37,1.05575805]
[1735697676517,0.2595618,709.72,708.38,0.28233434]
[1735697678220,0.25954192,709.71,708.47,1.05575805]
[1735697678421,0.25954192,709.7,708.48,0.28229448]
[1735697678719,0.25954192,709.69,708.48,0.28229448]
[1735697678919,1.47231996,709.79,708.48,0.28229448]
[1735697678920,0.25954192,709.68,708.48,0.28229448]
[1735697679121,1.47231996,709.79,708.48,0.28229448]
[1735697679420,1.47231996,709.79,708.52,1.05575805]
[1735697679421,0.25953799,709.78,708.52,1.05575805]
[1735697680417,0.25953799,709.78,708.49,0.78600611]
[1735697680418,0.25953799,709.78,708.56,1.05575805]
[1735697682720,0.25953799,709.78,708.54,1.05575805]
[1735697683317,1.47231996,709.79,708.54,1.05575805]
[1735697683522,0.25954061,709.78,708.55,0.2822666]
[1735697683921,0.25954061,709.78,708.55,1.33802465]
[1735697684121,1.47231996,709.79,708.55,1.33802465]
[1735697684319,0.25954076,709.78,708.55,1.33802465]
[1735697684720,0.25954076,709.78,708.61,1.05575805]
[1735697685824,0.25954076,709.78,708.6,1.05575805]
[1735697686223,0.25953141,709.77,708.6,1.05575805]
[1735697686420,0.25953141,709.76,708.6,1.05575805]
[1735697686621,0.25953141,709.75,708.6,1.05575805]
[1735697686819,0.25953141,709.74,708.6,1.05575805]
[1735697687020,0.25953141,709.73,708.58,1.05575805]
[1735697687223,1.47231996,709.79,708.58,1.05575805]
[1735697687224,0.25953141,709.72,708.58,1.05575805]
[1735697687524,0.25953141,709.71,708.58,1.05575805]
[1735697687723,0.25953141,709.7,708.58,1.05575805]
[1735697687921,1.47231996,709.79,708.59,1.05575805]
[1735697687922,0.25953141,709.69,708.59,1.05575805]
[1735697688125,0.25953141,709.68,708.59,1.05575805]
[1735697688329,0.25953141,709.67,708.59,1.05575805]
[1735697688626,1.47231996,709.79,708.59,1.05575805]
[1735697688627,0.25953141,709.66,708.59,1.05575805]
[1735697688820,0.25953141,709.78,708.59,1.05575805]
[1735697689024,0.25953141,709.77,708.58,1.05575805]
[1735697689228,0.25953141,709.76,708.58,1.05575805]
[1735697689424,0.25953141,709.75,708.58,1.05575805]
[1735697689623,0.25953141,709.74,708.58,1.05575805]
[1735697689826,0.25953141,709.73,708.58,1.05575805]
[1735697690122,0.25953141,709.72,708.59,1.05575805]
[1735697690325,0.25953141,709.71,708.59,1.05575805]
[1735697690522,0.25953141,709.7,708.59,1.05575805]
[1735697690724,0.25953141,709.69,708.59,1.05575805]
[1735697690924,0.25953141,709.69,708.57,0.28225863]
[1735697690925,0.25953141,709.68,708.61,1.05575805]
[1735697691229,0.25953141,709.67,708.61,1.05575805]
[1735697691422,0.25953141,709.78,708.61,1.05575805]
[1735697691625,0.25953141,709.77,708.61,1.05575805]
[1735697691922,0.25953141,709.76,708.61,1.05575805]
[1735697692127,1.47231996,709.79,708.61,1.05575805]
[1735697692327,0.25952647,709.78,708.61,1.05575805]
[1735697692923,0.25952647,709.78,708.63,1.05575805]
[1735697694126,1.47231996,709.79,708.62,1.05575805]
[1735697694329,0.25953004,709.78,708.62,1.05575805]
[1735697694930,0.25953004,709.78,708.63,1.05575805]
[1735697695131,0.25953004,709.77,708.63,1.05575805]
[1735697695331,0.25953004,709.76,708.63,1.05575805]
[1735697695530,0.25953004,709.75,708.63,1.05575805]
[1735697695728,0.25953004,709.74,708.63,1.05575805]
[1735697695929,0.25953004,709.73,708.63,1.05575805]
[1735697696232,0.25953004,709.73,708.58,0.78494553]
[1735697696233,0.25953004,709.72,708.66,1.05575805]
[1735697696531,0.25953004,709.71,708.66,1.05575805]
[1735697696728,0.25953004,709.7,708.66,1.05575805]
[1735697697028,0.28174172,709.87,708.66,1.05575805]
[1735697697234,0.25949868,709.86,708.66,1.05575805]
[1735697697435,0.25949868,709.86,708.69,1.05575805]
[1735697698735,0.25949868,709.86,708.7,1.05575805]
[1735697699529,0.25949868,709.86,708.68,1.05575805]
[1735697700336,0.25949868,709.86,708.69,1.05575805]
[1735697701331,0.28174172,709.87,708.68,1.05575805]
[1735697701531,0.25950467,709.86,708.68,1.05575805]
[1735697702235,0.25950467,709.86,708.59,0.28225066]
[1735697703138,0.25950467,709.86,708.6,1.05575805]
[1735697703531,0.25950467,709.86,708.61,0.2822427]
[1735697703839,0.28174172,709.87,708.61,0.2822427]
[1735697704032,0.25950563,709.86,708.61,0.2822427]
[1735697704232,0.25950563,709.86,708.61,1.33800075]
[1735697705439,0.25950563,709.86,708.65,1.05575805]
[1735697705837,0.25950563,709.86,708.66,0.28222278]
[1735697706341,0.25950563,709.86,708.67,1.05575805]
[1735697706538,0.25948882,709.85,708.67,1.05575805]
[1735697706734,0.25948882,709.84,708.67,1.05575805]
[1735697706935,0.25948882,709.83,708.67,1.05575805]
[1735697707138,0.25948882,709.82,708.67,1.05575805]
[1735697707338,0.25949031,709.81,708.67,1.05575805]
[1735697707541,0.28174172,709.87,708.69,1.05575805]
[1735697708343,0.28174172,709.87,708.66,0.28222278]
[1735697710539,0.2595176,709.86,708.66,0.28222278]
[1735697710944,0.28174172,709.87,708.66,0.28222278]
[1735697711139,0.25952588,709.86,708.66,0.28222278]
[1735697711944,0.25953004,709.85,708.66,0.28222278]
[1735697712138,0.25953004,709.84,708.66,0.28222278]
[1735697712339,0.28174172,709.87,708.66,0.28222278]
[1735697712645,0.25952667,709.86,708.66,0.28222278]
[1735697714342,0.28174172,709.87,708.66,0.28222278]
[1735697714539,0.25953094,709.86,708.66,0.28222278]
[1735697719644,0.28174172,709.87,708.66,0.28222278]
[1735697719851,0.25955044,709.86,708.66,0.28222278]
[1735697721145,0.28174172,709.87,708.66,0.28222278]
[1735697727056,0.25957244,709.86,708.66,0.28222278]
[1735697727555,0.28174172,709.87,708.66,0.28222278]
[1735697727757,0.25957294,709.86,708.66,0.28222278]
[1735697730255,0.25956892,709.85,708.66,0.28222278]
[1735697730453,0.28174172,709.87,708.66,0.28222278]
[1735697730454,0.25956892,709.84,708.66,0.28222278]
[1735697730659,0.25956892,709.83,708.66,0.28222278]
[1735697730855,0.25956892,709.82,708.66,0.28222278]
[1735697731258,0.24585451,709.82,708.66,0.28222278]
[1735697732862,1.47237706,709.83,708.66,0.28222278]
[1735697733063,0.25956451,709.82,708.66,0.28222278]
[1735697735467,1.47237706,709.83,708.66,0.28222278]
[1735697735668,0.2595398,709.82,708.66,0.28222278]
[1735697738172,1.47237706,709.83,708.66,0.28222278]
[1735697738373,0.25954239,709.82,708.66,0.28222278]
[1735697738974,0.25953987,709.81,708.66,0.28222278]
[1735697739173,0.25953987,709.8,708.66,0.28222278]
[1735697739369,0.25953987,709.79,708.66,0.28222278]
[1735697739574,0.25953987,709.78,708.66,0.28222278]
[1735697739775,0.25953987,709.77,708.66,0.28222278]
[1735697739976,0.25953987,709.76,708.66,0.28222278]
[1735697740274,0.25953987,709.75,708.66,0.28222278]
[1735697740474,0.25953987,709.74,708.66,0.28222278]
[1735697740675,0.25953987,709.73,708.66,0.28222278]
[1735697740875,0.25953987,709.82,708.66,0.28222278]
[1735697741176,0.25953987,709.81,708.66,0.28222278]
[1735697741375,0.25953987,709.8,708.66,0.28222278]
[1735697741573,0.25953987,709.79,708.66,0.28222278]
[1735697741777,0.25953987,709.78,708.66,0.28222278]
[1735697741969,0.25953987,709.77,708.66,0.28222278]
[1735697742174,0.25953987,709.76,708.66,0.28222278]
[1735697742376,0.25953987,709.82,708.66,0.28222278]
[1735697742670,0.25953987,709.81,708.66,0.28222278]
[1735697742870,0.25953987,709.8,708.66,0.28222278]
[1735697743477,0.25958619,709.79,708.66,0.28222278]
[1735697743677,0.25958619,709.78,708.66,0.28222278]
[1735697743878,0.25958619,709.77,708.66,0.28222278]
[1735697744181,0.25958619,709.76,708.66,0.28222278]
[1735697744384,0.25958619,709.75,708.66,0.28222278]
[1735697744579,0.25958619,709.74,708.66,0.28222278]
[1735697744883,0.25958619,709.73,708.66,0.28222278]
[1735697745076,0.25958619,709.72,708.66,0.28222278]
[1735697745275,0.25958619,709.71,708.66,0.28222278]
[1735697745475,0.25958619,709.7,708.66,0.28222278]
[1735697745676,0.25958619,709.69,708.66,0.28222278]
[1735697745880,0.25958619,709.68,708.66,0.28222278]
[1735697746081,0.2595901,709.67,708.66,0.28222278]
[1735697746382,0.2595901,709.66,708.66,0.28222278]
[1735697746583,0.2595901,709.65,708.66,0.28222278]
[1735697746776,1.47237706,709.81,708.66,0.28222278]
[1735697746981,0.2595806,709.8,708.66,0.28222278]
[1735697751591,0.2595806,709.8,708.2,1.05575805]
[1735697751889,0.2595806,709.8,708.21,0.28240211]
[1735697753991,1.47237706,709.81,708.21,0.28240211]
[1735697754186,0.25964685,709.8,708.21,0.28240211]
[1735697754789,0.25965028,709.79,708.21,0.28240211]
[1735697755092,0.25965028,709.78,708.21,0.28240211]
[1735697755391,0.25965028,709.77,708.21,0.28240211]
[1735697755587,0.25965028,709.76,708.21,0.28240211]
[1735697755795,0.25965028,709.75,708.21,0.28240211]
[1735697756093,0.25965028,709.74,708.21,0.28240211]
[1735697756293,0.25965028,709.73,708.21,0.28240211]
[1735697756492,0.25965028,709.72,708.21,0.28240211]
[1735697756692,1.47256398,709.72,708.21,0.28240211]
[1735697756895,0.25960265,709.71,708.21,0.28240211]
[1735697758891,0.25960265,709.71,708.21,1.33816016]
[1735697759495,0.25960524,709.7,708.21,1.33816016]
[1735697759696,0.25960524,709.69,708.21,0.28240211]
[1735697759895,0.25960524,709.68,708.21,0.28240211]
[1735697760100,0.25960524,709.67,708.21,0.28240211]
[1735697760397,0.25960524,709.66,708.21,0.28240211]
[1735697760596,0.25960524,709.65,708.21,0.28240211]
[1735697760797,0.25960524,709.64,708.21,0.28240211]
[1735697760999,0.25960524,709.63,708.21,1.33816016]
[1735697761198,0.25961319,709.62,708.21,1.33816016]
[1735697761397,1.47256398,709.72,708.21,1.33816016]
[1735697761398,0.25961319,709.61,708.21,1.33816016]
[1735697761594,0.25961319,709.6,708.21,1.33816016]
[1735697761799,0.25961319,709.59,708.21,0.28240211]
[1735697762001,1.47256398,709.72,708.21,0.28240211]
[1735697762201,0.25961949,709.71,708.21,0.28240211]
[1735697765899,0.25961949,709.71,708.3,1.05575805]
[1735697767004,0.25961949,709.71,708.32,1.05575805]
[1735697767208,0.25961949,709.7,708.32,1.05575805]
[1735697767399,0.25961949,709.69,708.32,1.05575805]
[1735697767603,0.25961949,709.68,708.32,1.05575805]
[1735697767799,1.47256398,709.72,708.32,1.05575805]
[1735697767999,0.25963505,709.71,708.32,1.05575805]
[1735697768599,0.28180921,709.7,708.33,1.05575805]
[1735697768902,0.25963505,709.69,708.33,1.05575805]
[1735697769099,0.28180921,709.7,708.33,1.05575805]
[1735697769304,0.2596207,709.69,708.33,1.05575805]
[1735697769806,0.2596207,709.69,708.35,1.05575805]
[1735697770102,0.25962141,709.68,708.35,1.05575805]
[1735697770302,0.25962141,709.67,708.35,1.05575805]
[1735697770502,0.25962141,709.66,708.35,1.05575805]
[1735697770704,0.25962141,709.65,708.35,1.05575805]
[1735697770904,0.25962141,709.65,708.26,1.05575805]
[1735697770905,0.25962141,709.64,708.38,1.05575805]
[1735697771105,0.25962141,709.63,708.38,1.05575805]
[1735697771302,0.25962141,709.62,708.38,1.05575805]
[1735697771907,1.47253282,709.63,708.38,1.05575805]
[1735697772109,0.25962228,709.62,708.36,1.05575805]
[1735697774011,0.25962228,709.62,708.38,1.05575805]
[1735697774610,0.25962182,709.61,708.38,1.05575805]
[1735697774811,0.25962182,709.6,708.4,1.05575805]
[1735697775113,0.25962182,709.59,708.4,1.05575805]
[1735697775309,0.25962182,709.58,708.4,1.05575805]
[1735697775509,1.47253282,709.63,708.4,1.05575805]
[1735697775714,1.47253282,709.63,708.43,1.05575805]
[1735697776715,1.47253282,709.63,708.29,1.05575805]
[1735697776916,1.47253282,709.63,708.3,0.28236622]
[1735697777917,1.47253282,709.63,708.33,1.05575805]
[1735697778113,1.47253282,709.63,708.34,0.28235028]
[1735697779219,1.47253282,709.63,708.35,1.05575805]
[1735697780216,0.28180921,709.7,708.36,0.28234231]
[1735697780420,0.259588,709.69,708.36,0.28234231]
[1735697782517,1.75430049,709.7,708.36,0.28234231]
[1735697782723,0.25959045,709.69,708.36,0.28234231]
[1735697783325,1.05834082,710.3,708.36,0.28234231]
[1735697783725,1.05834082,710.29,708.36,0.28234231]
[1735697784826,1.47164027,710.52,708.36,0.28234231]
[1735697784827,1.47164027,710.52,709.08,1.05575805]
[1735697785628,1.47164027,710.52,709.09,0.28205164]
[1735697786127,0.25924799,710.51,709.09,0.28205164]
[1735697786627,1.47164027,710.52,709.09,0.28205164]
[1735697793431,0.25927789,710.51,709.09,0.28205164]
[1735697793937,1.47164027,710.52,709.09,0.28205164]
[1735697794137,0.2592639,710.51,709.09,0.28205164]
[1735697794338,1.47164027,710.52,709.09,0.28205164]
[1735697794637,0.25926462,710.51,709.09,0.28205164]
[1735697795832,0.25927241,710.5,709.09,0.28205164]
[1735697796036,0.25927241,710.49,709.09,0.28205164]
[1735697796232,0.25927241,710.48,709.09,0.28205164]
[1735697796435,0.25927241,710.47,709.09,0.28205164]
[1735697796632,0.25927241,710.46,709.09,0.28205164]
[1735697796832,0.25927241,710.45,709.09,0.28205164]
[1735697797031,0.64158389,712.36,709.09,0.28205164]
[1735697797231,0.28081999,712.2,709.09,0.28205164]
[1735697797431,0.900848,712.19,709.09,0.28205164]
[1735697797637,0.900848,712.18,709.09,0.28205164]
[1735697797833,0.28088704,712.03,709.09,0.28205164]
[1735697798031,0.900848,712.02,709.09,0.28205164]
[1735697798235,0.900848,712.01,709.09,0.28205164]
[1735697798438,0.28088704,712.03,709.09,0.28205164]
[1735697798631,0.90083969,712.02,709.09,0.28205164]
[1735697798836,0.90083969,712.01,709.09,0.28205164]
[1735697799036,0.90083969,712.0,709.09,0.28205164]
[1735697799238,0.90083969,711.99,709.09,0.28205164]
[1735697799539,0.90083969,711.98,709.09,0.28205164]
[1735697799739,0.90083969,711.97,709.09,0.28205164]
[1735697799940,0.90083969,711.96,709.09,0.28205164]
[1735697800134,0.90083969,711.95,709.09,0.28205164]
[1735697800336,0.90083969,711.94,709.09,0.28205164]
[1735697800538,0.90083969,711.93,709.09,0.28205164]
[1735697800734,0.90083969,711.92,709.09,0.28205164]
[1735697800934,0.90083969,711.91,709.09,0.28205164]
[1735697801137,0.90083483,711.9,709.09,0.28205164]
[1735697801335,0.90083483,711.89,709.09,0.28205164]
[1735697801540,0.90083483,711.88,709.09,0.28205164]
[1735697801841,0.90083483,711.87,709.09,0.28205164]
[1735697802037,0.90083483,711.86,709.09,0.28205164]
[1735697802242,0.90083483,711.85,709.09,0.28205164]
[1735697802443,0.90083483,711.84,709.09,0.28205164]
[1735697802642,0.90083483,711.83,709.09,0.28205164]
[1735697802944,0.90083483,711.82,709.09,0.28205164]
[1735697803144,0.90083483,711.81,709.09,0.28205164]
[1735697803339,0.90083483,711.8,709.09,0.28205164]
[1735697803540,0.90083483,711.79,709.09,0.28205164]
[1735697803741,1.47028793,711.94,709.09,0.28205164]
[1735697803742,0.28102912,711.67,709.09,0.28205164]
[1735697804045,0.90079803,711.66,709.09,0.28205164]
[1735697804237,0.90079803,711.65,709.09,0.28205164]
[1735697804438,0.28108442,711.53,709.09,0.28205164]
[1735697804641,0.25925325,711.52,709.09,0.28205164]
[1735697804839,0.28113578,711.4,709.09,0.28205164]
[1735697805037,0.25925325,711.39,709.09,0.28205164]
[1735697805245,0.28118321,711.28,709.09,0.28205164]
[1735697805446,0.25925325,711.27,709.09,0.28205164]
[1735697805646,0.28119507,711.25,709.09,0.28205164]
[1735697805950,0.25925325,711.24,709.09,0.28205164]
[1735697806249,0.28120694,711.22,709.09,0.28205164]
[1735697806449,0.25923231,711.21,709.09,0.28205164]
[1735697806642,1.47028793,711.94,709.09,0.28205164]
[1735697806643,0.2812188,711.19,709.09,0.28205164]
[1735697806851,0.25923231,711.18,709.09,0.28205164]
[1735697807047,0.28123066,711.16,709.09,0.28205164]
[1735697807247,0.25923231,711.15,709.09,0.28205164]
[1735697807451,0.28124252,711.13,709.09,0.28205164]
[1735697807649,0.25923231,711.12,709.09,0.28205164]
[1735697807855,0.25923231,711.11,709.09,0.28205164]
[1735697808053,0.25923231,711.1,709.09,0.28205164]
[1735697808256,0.25923231,711.09,709.09,0.28205164]
[1735697808455,0.25923231,711.08,709.09,0.28205164]
[1735697808755,0.28127021,711.06,709.09,0.28205164]
[1735697808951,0.25923231,711.05,709.09,0.28205164]
[1735697809152,0.28128208,711.03,709.09,0.28205164]
[1735697809350,0.25923656,711.02,709.09,0.28205164]
[1735697809551,0.25923656,711.01,709.09,0.28205164]
[1735697809750,0.54053051,711.0,709.09,0.28205164]
[1735697810056,0.25923656,710.99,709.09,0.28205164]
[1735697810257,0.25923656,710.98,709.09,0.28205164]
[1735697810457,0.25923656,710.97,709.09,0.28205164]
[1735697810649,0.25923656,710.96,709.09,0.28205164]
[1735697810850,0.25923656,710.95,709.09,0.28205164]
[1735697811155,0.25923656,710.94,709.09,0.28205164]
[1735697811355,0.25923656,710.93,709.09,0.28205164]
[1735697811556,0.25923656,710.92,709.09,0.28205164]
[1735697811855,0.25921789,710.91,709.09,0.28205164]
[1735697812050,0.25921789,710.9,709.23,1.03572275]
[1735697812255,0.25921789,710.89,709.23,1.03572275]
[1735697812555,1.47042254,710.97,709.23,1.03572275]
[1735697812556,0.25921789,710.88,709.23,1.03572275]
[1735697812753,0.25921789,710.87,709.23,1.03572275]
[1735697812957,0.25921789,710.86,709.29,1.03572275]
[1735697813157,0.25921789,710.85,709.29,1.03572275]
[1735697813349,0.25921789,710.84,709.29,1.03572275]
[1735697813555,0.25921789,710.83,709.29,1.03572275]